Workbook

Sheet Hazlov
A1: Hazlov
B5: Jméno | C5: Oddíl | D5: Reg.č. | E5: Kategorie | F5: Celk. | G5: Plné | H5: Dor. | I5: Chyb
A8: =IF(OR(ISBLANK($B8),$E8<0),"",ROW(A8)-7) -> 1. | B8: Hervertová Kristýna | C8: TJ Lomnice | D8: 27505 | E8: db | F8: 287 | G8: 187 | H8: 100 | I8: 1
A9: =IF(OR(ISBLANK($B9),$E9<0),"",ROW(A9)-7) -> 2. | B9: Benešová Barbora | C9: Jiskra Kovářská | D9: 28243 | E9: db | F9: 233 | G9: 158 | H9: 75 | I9: 7
A10: =IF(OR(ISBLANK($B10),$E10<0),"",ROW(A10)-7) -> 3. | B10: Bartošová Anna | C10: Jiskra Hazlov | D10: 26543 | E10: db | F10: =IF(OR(ISBLANK($G10))," ",G10+H10) -> 219 | G10: 149 | H10: 70 | I10: 6
A11: =IF(OR(ISBLANK($B11),$E11<0),"",ROW(A11)-7) -> 4. | B11: Valešová Ema | C11: Jiskra Kovářská | D11: 28246 | E11: db | F11: 210 | G11: 131 | H11: 79 | I11: 9
A13: 1. | B13: Köstler Sebastian | C13: TJ Lomnice | D13: 27285 | E13: ha | F13: =IF(OR(ISBLANK($G13))," ",G13+H13) -> 227 | G13: 165 | H13: 62 | I13: 5
A15: 1. | B15: Bláha Kamil | C15: Jiskra Hazlov | D15: 28339 | E15: hb | F15: =IF(OR(ISBLANK($G15))," ",G15+H15) -> 158 | G15: 98 | H15: 60 | I15: 15

Sheet Kosmonosy
A1: Kosmonosy
B5: Jméno | C5: Oddíl | D5: Reg. č. | E5: Kategorie | F5: Celk. | G5: Plné | H5: Dor. | I5: Chyb
A8: =IF(OR(ISBLANK($B8),$E8<0),"",ROW(A8)-7) -> 1. | B8: Dytrychová Lada | C8: KK Kosmonosy | D8: 26724 | E8: da | F8: =IF(OR(ISBLANK($G8))," ",G8+H8) -> 281 | G8: 178 | H8: 103 | I8: 1
A9: 2. | B9: Bártová Nikol | C9: SKK Náchod | D9: 26376 | E9: da | F9: 268 | G9: 182 | H9: 86 | I9: 1
A10: 3. | B10: Dalecká Tereza | C10: Kuželky Přelouč | D10: 27181 | E10: da | F10: 257 | G10: 178 | H10: 79 | I10: 5
A11: 4. | B11: Hejnová Klára | C11: SKK Náchod | D11: 27121 | E11: da | F11: 253 | G11: 182 | H11: 71 | I11: 6
A12: 5. | B12: Banýrová Vanessa | C12: Spartak Rokytnice | D12: 27138 | E12: da | F12: 251 | G12: 174 | H12: 77 | I12: 6
A13: 6. | B13: Schneiderová Nikol | C13: SKK Náchod | D13: 27198 | E13: da | F13: 249 | G13: 172 | H13: 77 | I13: 6
A14: 7. | B14: Klausová Štěpánka | C14: Sparta Kutná Hora | D14: 27701 | E14: da | F14: 234 | G14: 155 | H14: 79 | I14: 4
A15: 8. | B15: Škurlová Ema | C15: Loko Ústí n.L. | D15: 27127 | E15: da | F15: 230 | G15: 160 | H15: 70 | I15: 7
A16: 9. | B16: Miláčková Karolína | C16: Kuželky Přelouč | D16: 27154 | E16: da | F16: 203 | G16: 149 | H16: 54 | I16: 10
A17: 10. | B17: Kindlová Karolína | C17: KK Kosmonosy | D17: 28357 | E17: da | F17: 159 | G17: 130 | H17: 29 | I17: 20
A19: 1. | B19: Vítová Amálie | C19: KK Kosmonosy | D19: 26928 | E19: db | F19: 289 | G19: 185 | H19: 104 | I19: 2
A20: 2. | B20: Hubková Lucie | C20: SKK Náchod | D20: 27195 | E20: db | F20: 268 | G20: 182 | H20: 86 | I20: 5
A21: 3. | B21: Šimkovičová Ema | C21: SKK Náchod | D21: 27190 | E21: db | F21: 254 | G21: 170 | H21: 84 | I21: 5
A22: 4. | B22: Čapková Rozálie | C22: SKK Náchod | D22: 27119 | E22: db | F22: 252 | G22: 165 | H22: 87 | I22: 5
A23: 5. | B23: Pánková Eliška | C23: SKK Vrchlabí | D23: 27488 | E23: db | F23: 250 | G23: 151 | H23: 99 | I23: 6
A24: 6. | B24: Drašnarová Amálie | C24: SKK Náchod | D24: 27607 | E24: db | F24: 246 | G24: 156 | H24: 90 | I24: 9
A25: 7. | B25: Ratimcová Barbora | C25: KK Kosmonosy | D25: 27987 | E25: db | F25: 240 | G25: 162 | H25: 78 | I25: 5
A26: 8. | B26: Voňková Eliška | C26: SKK Náchod | D26: 28252 | E26: db | F26: 230 | G26: 158 | H26: 72 | I26: 9
A27: 9. | B27: Petrgálová Marie | C27: SKK Jičín | D27: 27740 | E27: db | F27: 228 | G27: 141 | H27: 87 | I27: 6
A28: 10. | B28: Udatná Viktorie | C28: Spartak Rokytnice | D28: 27144 | E28: db | F28: 224 | G28: 136 | H28: 88 | I28: 7
A29: 11. | B29: Mykytyn Anastasiia | C29: KK Kosmonosy | D29: 27636 | E29: db | F29: 222 | G29: 162 | H29: 60 | I29: 6
A30: 12. | B30: Dostálová Nikola | C30: SKK Vrchlabí | D30: 28329 | E30: db | F30: 215 | G30: 145 | H30: 70 | I30: 11
A31: 13. | B31: Drobná Ema | C31: SKK Jičín | D31: 28029 | E31: db | F31: 207 | G31: 138 | H31: 69 | I31: 12
A32: 14. | B32: Novak Sofie | C32: KK Kosmonosy | D32: 27637 | E32: db | F32: 202 | G32: 155 | H32: 47 | I32: 7
A33: 15. | B33: Kesnerová Amélie | C33: SKK Jičín | D33: 27742 | E33: db | F33: 201 | G33: 129 | H33: 72 | I33: 16
A34: 16. | B34: Jarolímová Anna | C34: Kuželky Přelouč | D34: 28195 | E34: db | F34: 200 | G34: 121 | H34: 79 | I34: 12
A35: 17. | B35: Homolková Anna | C35: KK Kosmonosy | D35: 27988 | E35: db | F35: 185 | G35: 145 | H35: 40 | I35: 11
A36: 18. | B36: Makoviny Viola | C36: SKK Jičín | D36: 27975 | E36: db | F36: 166 | G36: 91 | H36: 75 | I36: 22
A37: 19. | B37: Medková Viktoria | C37: KK Kosmonosy | D37: 28358 | E37: db | F37: 162 | G37: 125 | H37: 37 | I37: 18
A38: 20. | B38: Mertlíková Kristýna | C38: SKK Jičín | D38: 28092 | E38: db | F38: 100 | G38: 57 | H38: 43 | I38: 32
A40: 1. | B40: Posnar Petr | C40: SKK Náchod | D40: 27122 | E40: ha | F40: 281 | G40: 184 | H40: 97 | I40: 3
A41: 2. | B41: Martinec Daniel | C41: SKK Náchod | D41: 27196 | E41: ha | F41: 279 | G41: 193 | H41: 86 | I41: 0
A42: 3. | B42: Banýr Sebastian | C42: Spartak Rokytnice | D42: 27145 | E42: ha | F42: 276 | G42: 184 | H42: 92 | I42: 3
A43: 4. | B43: Richter Kryštof | C43: Červený Kostelec | D43: 27506 | E43: ha | F43: 270 | G43: 185 | H43: 85 | I43: 6
A44: 5. | B44: Fišer Tomáš | C44: SK Verneřice | D44: 28126 | E44: ha | F44: 269 | G44: 179 | H44: 90 | I44: 2
A45: 6. | B45: Semecký Karel | C45: Slavoj Praha | D45: 26731 | E45: ha | F45: 257 | G45: 172 | H45: 85 | I45: 5
A46: 7. | B46: Zapletal Jan | C46: SKK Vrchlabí | D46: 26852 | E46: ha | F46: 255 | G46: 176 | H46: 79 | I46: 4
A47: 8. | B47: Machačka Karel | C47: Spartak Rokytnice | D47: 27140 | E47: ha | F47: 252 | G47: 181 | H47: 71 | I47: 4
A48: 9. | B48: Maršík Tomáš | C48: SKK Vrchlabí | D48: 27265 | E48: ha | F48: 248 | G48: 187 | H48: 61 | I48: 10
A49: 10. | B49: Filipský Jakub | C49: SKK Náchod | D49: 27116 | E49: ha | F49: 247 | G49: 161 | H49: 86 | I49: 4
A50: 11. | B50: Zuzánek Michal | C50: Spartak Rokytnice | D50: 27147 | E50: ha | F50: 246 | G50: 166 | H50: 80 | I50: 6
A51: 12. | B51: Šimsa Michal | C51: Teplice Letná | D51: 26471 | E51: ha | F51: 241 | G51: 172 | H51: 69 | I51: 2
A52: 13. | B52: Šťastný Pavel | C52: TJ Neratovice | D52: 27212 | E52: ha | F52: 234 | G52: 177 | H52: 57 | I52: 14
A53: 14. | B53: Hrbáček Jaroslav | C53: SKK Vrchlabí | D53: 27859 | E53: ha | F53: 231 | G53: 187 | H53: 44 | I53: 14
A54: 15. | B54: Novák Janek | C54: Spartak Rokytnice | D54: 27142 | E54: ha | F54: 224 | G54: 163 | H54: 61 | I54: 11
A55: 16. | B55: Kůta Václav | C55: SKK Jičín | D55: 27540 | E55: ha | F55: 213 | G55: 152 | H55: 61 | I55: 6
A56: 17. | B56: Hanzl Denis | C56: SKK Náchod | D56: 27966 | E56: ha | F56: 204 | G56: 137 | H56: 67 | I56: 9
A57: 18. | B57: Mlejnecký Pavel | C57: KK Kosmonosy | D57: 27632 | E57: ha | F57: 184 | G57: 142 | H57: 42 | I57: 14
A59: 1. | B59: Flaška Filip | C59: SKK Náchod | D59: 27203 | E59: hb | F59: 279 | G59: 168 | H59: 111 | I59: 2
A60: 2. | B60: Koudelka Adam | C60: SKK Vrchlabí | D60: 27178 | E60: hb | F60: 271 | G60: 169 | H60: 102 | I60: 2
A61: 3. | B61: Liška Ondřej | C61: SKK Vrchlabí | D61: 28040 | E61: hb | F61: 266 | G61: 168 | H61: 98 | I61: 4
A62: 4. | B62: Sojka Jaromír | C62: Sparta Kutná Hora | D62: 27358 | E62: hb | F62: 257 | G62: 180 | H62: 77 | I62: 6
A63: 5. | B63: Kanalaš Jakub | C63: KK Kosmonosy | D63: 27990 | E63: hb | F63: 254 | G63: 161 | H63: 93 | I63: 6
A64: 6. | B64: Hloušek Matouš | C64: Spartak Rokytnice | D64: 27137 | E64: hb | F64: 253 | G64: 159 | H64: 94 | I64: 7
A65: 7. | B65: Rolf Jakub | C65: SKK Vrchlabí | D65: 27236 | E65: hb | F65: 249 | G65: 162 | H65: 87 | I65: 8
A66: 8. | B66: Fejfar Matěj | C66: SKK Jičín | D66: 28020 | E66: hb | F66: 247 | G66: 153 | H66: 94 | I66: 5
A67: 9. | B67: Dušek Michal | C67: SKK Náchod | D67: 27193 | E67: hb | F67: 246 | G67: 157 | H67: 89 | I67: 8
A68: 10. | B68: Gregor Tomáš | C68: SKK Vrchlabí | D68: 27489 | E68: hb | F68: 242 | G68: 157 | H68: 85 | I68: 6
A69: 11. | B69: Fejfar Adam | C69: SKK Jičín | D69: 28019 | E69: hb | F69: 240 | G69: 150 | H69: 90 | I69: 6
A70: 12. | B70: Vít Tomáš | C70: KK Kosmonosy | D70: 26925 | E70: hb | F70: 240 | G70: 158 | H70: 82 | I70: 3
A71: 13. | B71: Zwiefelhofer David | C71: Červený Kostelec | D71: 27421 | E71: hb | F71: 240 | G71: 166 | H71: 74 | I71: 11
A72: 14. | B72: Váňa Jakub | C72: SKK Jičín | D72: 27741 | E72: hb | F72: 236 | G72: 161 | H72: 75 | I72: 9
A73: 15. | B73: Cicko Jan | C73: Loko Ústí n.L. | D73: 27131 | E73: hb | F73: 235 | G73: 144 | H73: 91 | I73: 6
A74: 16. | B74: Oprysk Pavel | C74: SKK Náchod | D74: 27123 | E74: hb | F74: 232 | G74: 154 | H74: 78 | I74: 5
A75: 17. | B75: Vízek Sebastian | C75: Spartak Rokytnice | D75: 27146 | E75: hb | F75: =IF(OR(ISBLANK($G75))," ",G75+H75) -> 230 | G75: 135 | H75: 95 | I75: 5
A76: 18. | B76: Koudelka Štěpán | C76: Sparta Kutná Hora | D76: 27591 | E76: hb | F76: 228 | G76: 141 | H76: 87 | I76: 8
A77: 19. | B77: Harazín Daniel | C77: SKK Náchod | D77: 28370 | E77: hb | F77: 221 | G77: 154 | H77: 67 | I77: 7
A78: 20. | B78: Novotný Štěpán | C78: SKK Jičín | D78: 27647 | E78: hb | F78: 219 | G78: 142 | H78: 77 | I78: 9
A79: 21. | B79: Hruška Jakub | C79: SKK Třebechovice | D79: 28207 | E79: hb | F79: 218 | G79: 147 | H79: 71 | I79: 9
A80: 22. | B80: Záhrobský Adam | C80: Sparta Kutná Hora | D80: 27359 | E80: hb | F80: 213 | G80: 126 | H80: 87 | I80: 7
A81: 23. | B81: Machačka Antonín | C81: Spartak Rokytnice | D81: 27139 | E81: hb | F81: 211 | G81: 133 | H81: 78 | I81: 10
A82: 24. | B82: Červený Tadeáš | C82: SKK Vrchlabí | D82: 28334 | E82: hb | F82: 210 | G82: 126 | H82: 84 | I82: 6
A83: 25. | B83: Mydlář Vojtěch | C83: TJ Neratovice | D83: 27963 | E83: hb | F83: 209 | G83: 132 | H83: 77 | I83: 7
A84: 26. | B84: Miláček Adam | C84: Kuželky Přelouč | D84: 28196 | E84: hb | F84: 209 | G84: 139 | H84: 70 | I84: 8
A85: 27. | B85: Mlejnek Lukáš | C85: KK Kosmonosy | D85: 27635 | E85: hb | F85: 209 | G85: 147 | H85: 62 | I85: 10
A86: 28. | B86: Čančík Marek | C86: KK Kosmonosy | D86: 27986 | E86: hb | F86: 205 | G86: 149 | H86: 56 | I86: 8
A87: 29. | B87: Rutar Vojtěch | C87: SKK Náchod | D87: 28372 | E87: hb | F87: 204 | G87: 135 | H87: 69 | I87: 12
A88: 30. | B88: Adamů Jonáš | C88: Červený Kostelec | D88: 28159 | E88: hb | F88: 201 | G88: 127 | H88: 74 | I88: 13
A89: 31. | B89: Koudelka Vít | C89: Sparta Kutná Hora | D89: 27593 | E89: hb | F89: 200 | G89: 150 | H89: 50 | I89: 12
A90: 32. | B90: Vlček Matěj | C90: Červený Kostelec | D90: 27422 | E90: hb | F90: 199 | G90: 134 | H90: 65 | I90: 10
A91: 33. | B91: Musil Patrik | C91: SKK Náchod | D91: 27608 | E91: hb | F91: 197 | G91: 122 | H91: 75 | I91: 12
A92: 34. | B92: Žákovský Jan | C92: KK Kosmonosy | D92: 27630 | E92: hb | F92: 197 | G92: 155 | H92: 42 | I92: 10
A93: 35. | B93: Oplt Matyáš | C93: KK Kosmonosy | D93: 27631 | E93: hb | F93: 187 | G93: 142 | H93: 45 | I93: 9
A94: 36. | B94: Sýkora Ondřej | C94: Červený Kostelec | D94: 27764 | E94: hb | F94: 180 | G94: 116 | H94: 64 | I94: 11
A95: 37. | B95: Dostál Kryštof | C95: SKK Vrchlabí | D95: 28328 | E95: hb | F95: 178 | G95: 101 | H95: 77 | I95: 16
A96: 38. | B96: Gregor Ondřej | C96: SKK Vrchlabí | E96: hb | F96: 129 | G96: 75 | H96: 54 | I96: 28

Sheet Mistřín
A1: Mistřín
B5: Jméno | C5: Oddíl | D5: Reg.č. | E5: Kategorie | F5: Celk. | G5: Plné | H5: Dor. | I5: Chyb
A8: =IF(OR(ISBLANK($B8),$E8<0),"",ROW(A8)-7) -> 1. | B8: Sedláčková Veronika | C8: KK Blansko | D8: 27259 | E8: da | F8: =SUM(G8:H8) -> 282 | G8: 188 | H8: 94 | I8: 6
A9: 2. | B9: Kotásková Nathalie | C9: Baník Ratíškovice | D9: 26975 | E9: da | F9: 276 | G9: 181 | H9: 95 | I9: 5
A10: 3. | B10: Novotná Anna | C10: Baník Ratíškovice | D10: 26972 | E10: da | F10: 272 | G10: 185 | H10: 87 | I10: 2
A11: 4. | B11: Škodová Romana | C11: Lokomotiva Valtice | D11: 26413 | E11: da | F11: 260 | G11: 193 | H11: 67 | I11: 8
A12: 5. | B12: Růžičková Beáta | C12: Baník Ratíškovice | D12: 26973 | E12: da | F12: 251 | G12: 168 | H12: 83 | I12: 3
A13: 6. | B13: Foltýnová Kamila | C13: VKK Vsetín | D13: 26765 | E13: da | F13: 245 | G13: 169 | H13: 76 | I13: 8
A14: 7. | B14: Harcová Alžběta | C14: Sokol Vracov | D14: 27487 | E14: da | F14: 245 | G14: 186 | H14: 59 | I14: 11
A15: 8. | B15: Košuličová Justýna | C15: Baník Ratíškovice | D15: 27225 | E15: da | F15: 225 | G15: 153 | H15: 72 | I15: 5
A16: 9. | B16: Zemanová Simona | C16: Baník Ratíškovice | D16: 28272 | E16: da | F16: 221 | G16: 154 | H16: 67 | I16: 6
A17: 10. | B17: Novotná Tamara | C17: Lokomotiva Valtice | D17: 26413 | E17: da | F17: 214 | G17: 161 | H17: 53 | I17: 10
A18: 11. | B18: Havířová Linda | C18: KK Blansko | D18: 27241 | E18: da | F18: 212 | G18: 144 | H18: 68 | I18: 9
A19: 12. | B19: Čížková Magdaléna | C19: Baník Ratíškovice | D19: 28286 | E19: da | F19: 204 | G19: 155 | H19: 49 | I19: 11
A20: 13. | B20: Fukanová Adriana | C20: Baník Ratíškovice | D20: 27873 | E20: da | F20: 189 | G20: 144 | H20: 45 | I20: 13
A21: 14. | B21: Škarková Gabriela | C21: Sokol Šanov | D21: 27515 | E21: da | F21: 188 | G21: 140 | H21: 48 | I21: 12
A23: 1. | B23: Lysáková Leontýna | C23: Sokol Šanov | D23: 27185 | E23: db | F23: 278 | G23: 180 | H23: 98 | I23: 1
A24: 2. | B24: Šebková Tereza | C24: Baník Ratíškovice | D24: 27870 | E24: db | F24: 256 | G24: 163 | H24: 93 | I24: 8
A25: 3. | B25: Mikulenková Anežka | C25: Sokol Šanov | D25: 28310 | E25: db | F25: 252 | G25: 166 | H25: 86 | I25: 8
A26: 4. | B26: Sedláčková Adéla | C26: KK Blansko | D26: 28373 | E26: db | F26: 245 | G26: 146 | H26: 99 | I26: 4
A27: 5. | B27: Kafková Soňa | C27: Sokol Šanov | D27: 28311 | E27: db | F27: 241 | G27: 161 | H27: 80 | I27: 9
A28: 6. | B28: Schüllerová Magdaléna | C28: Baník Ratíškovice | D28: 28271 | E28: db | F28: 186 | G28: 117 | H28: 69 | I28: 12
A30: 1. | B30: Mika Nicolas | C30: Sokol Šanov | D30: 26532 | E30: ha | F30: 295 | G30: 198 | H30: 97 | I30: 2
A31: 2. | B31: Daněček Dominik | C31: Sokol Vracov | D31: 26635 | E31: ha | F31: 285 | G31: 189 | H31: 96 | I31: 6
A32: 3. | B32: Holan Čeněk | C32: Slavoj Praha | D32: 27578 | E32: ha | F32: 280 | G32: 191 | H32: 89 | I32: 5
A33: 4. | B33: Vrba Michal | C33: Sokol Luhačovice | D33: 27325 | E33: ha | F33: 265 | G33: 193 | H33: 72 | I33: 4
A34: 5. | B34: Dedík Filip | C34: Zlín | D34: 26666 | E34: ha | F34: 255 | G34: 171 | H34: 84 | I34: 5
A35: 6. | B35: Dočkal Pavel | C35: Zlín | D35: 27527 | E35: ha | F35: 252 | G35: 176 | H35: 76 | I35: 6
A36: 7. | B36: Vrba Štěpán | C36: Sokol Luhačovice | D36: 27323 | E36: ha | F36: 246 | G36: 165 | H36: 81 | I36: 5
A37: 8. | B37: Koch Tadeáš | C37: Baník Ratíškovice | D37: 27474 | E37: ha | F37: 244 | G37: 182 | H37: 62 | I37: 6
A38: 9. | B38: Urban Patrik | C38: VKK Vsetín | D38: 26704 | E38: ha | F38: 227 | G38: 164 | H38: 63 | I38: 8
A39: 10. | B39: Šenkýř Jan | C39: KK Ořechov | D39: 27803 | E39: ha | F39: 225 | G39: 165 | H39: 60 | I39: 8
A40: 11. | B40: Svoboda Tomáš | C40: Zlín | D40: 26664 | E40: ha | F40: 217 | G40: 153 | H40: 64 | I40: 8
A41: 12. | B41: Minařík Josef | C41: Zlín | D41: 28074 | E41: ha | F41: 207 | G41: 163 | H41: 44 | I41: 16
A42: 13. | B42: Škarek Petr | C42: Sokol Šanov | D42: 27514 | E42: ha | F42: 205 | G42: 145 | H42: 60 | I42: 15
A44: 1. | B44: Mika Šimon | C44: Sokol Šanov | D44: 27879 | E44: hb | F44: 292 | G44: 201 | H44: 91 | I44: 2
A45: 2. | B45: Borovička Roman | C45: Sokol Šanov | D45: 27184 | E45: hb | F45: 275 | G45: 170 | H45: 105 | I45: 3
A46: 3. | B46: Piska Josef | C46: Zlín | D46: 28080 | E46: hb | F46: 253 | G46: 168 | H46: 85 | I46: 7
A47: 4. | B47: Novotný Mikuláš | C47: Baník Ratíškovice | D47: 27869 | E47: hb | F47: 252 | G47: 176 | H47: 76 | I47: 6
A48: 5. | B48: Dedík Jan | C48: Zlín | D48: 28079 | E48: hb | F48: 251 | G48: 170 | H48: 81 | I48: 11
A49: 6. | B49: Šebesta Adam | C49: Baník Ratíškovice | D49: 27871 | E49: hb | F49: 244 | G49: 164 | H49: 80 | I49: 8
A50: 7. | B50: Redek Jakub | C50: KK Vyškov | D50: 28095 | E50: hb | F50: 239 | G50: 165 | H50: 74 | I50: 9
A51: 8. | B51: Heinik Sebastian | C51: Zlín | D51: 28077 | E51: hb | F51: 214 | G51: 143 | H51: 71 | I51: 8
A52: 9. | B52: Kratina Matyáš | C52: VKK Vsetín | D52: 27900 | E52: hb | F52: 209 | G52: 126 | H52: 83 | I52: 5
A53: 10. | B53: Kratochvíla Dominik | C53: Baník Ratíškovice | D53: 28273 | E53: hb | F53: 180 | G53: 106 | H53: 74 | I53: 12

Sheet Pelhřimov
A1: Pelhřimov
B5: Jméno | C5: Oddíl | D5: Reg.č. | E5: Kategorie | F5: Celk. | G5: Plné | H5: Dor. | I5: Chyb
A8: =IF(OR(ISBLANK($B8),$E8<0),"",ROW(A8)-7) -> 1. | B8: Šindelářová Klára | C8: Slovan Kamenice n.L. | D8: 26615 | E8: da | F8: =IF(OR(ISBLANK($G8))," ",G8+H8) -> 288 | G8: 202 | H8: 86 | I8: 3
A9: 2. | B9: Čepáková Natálie | C9: Dačice | D9: 27906 | E9: da | F9: 252 | G9: 165 | H9: 87 | I9: 2
A10: 3. | B10: Kozáková Karolína | C10: KK Jihlava | D10: 26812 | E10: da | F10: 248 | G10: 159 | H10: 89 | I10: 1
A11: 4. | B11: Málková Valerie | C11: KK Jihlava | D11: 27309 | E11: da | F11: 241 | G11: 164 | H11: 77 | I11: 5
A12: 5. | B12: Březinová Adéla | C12: Dačice | D12: 27208 | E12: da | F12: 240 | G12: 178 | H12: 62 | I12: 10
A13: 6. | B13: Bartoňová Kamila | C13: Sokol Chotoviny | D13: 26637 | E13: da | F13: 239 | G13: 165 | H13: 74 | I13: 8
A14: 7. | B14: Čadová Vendula | C14: České Velenice | D14: 27213 | E14: da | F14: 237 | G14: 165 | H14: 72 | I14: 6
A15: 8. | B15: Černíková Jana | C15: Jiskra Nová Bystřice | D15: 27694 | E15: da | F15: 237 | G15: 183 | H15: 54 | I15: 11
A16: 9. | B16: Hrůzová Rozálie | C16: Dačice | D16: 27210 | E16: da | F16: 228 | G16: 157 | H16: 71 | I16: 8
A17: 10. | B17: Deylová Běla | C17: Slavoj Žirovnice | D17: 27570 | E17: da | F17: 218 | G17: 157 | H17: 61 | I17: 8
A18: 11. | B18: Kaluginová Veronika | C18: Dačice | D18: 27907 | E18: da | F18: 197 | G18: 158 | H18: 39 | I18: 12
A19: 12. | B19: Kulková Nela | C19: TJ Nové Město n.M. | D19: 27457 | E19: da | F19: 193 | G19: 154 | H19: 39 | I19: 16
A20: 13. | B20: Hupková Ema | C20: KK Jihlava | D20: 27314 | E20: da | F20: 188 | G20: 145 | H20: 43 | I20: 12
A22: 1. | B22: Tokárová Nikola | C22: České Velenice | D22: 27587 | E22: db | F22: 246 | G22: 151 | H22: 95 | I22: 4
A23: 2. | B23: Pánková Julie | C23: Jiskra Nová Bystřice | D23: 27882 | E23: db | F23: 228 | G23: 135 | H23: 93 | I23: 6
A24: 3. | B24: Tarkovych Antonina | C24: KK Jihlava | D24: 27307 | E24: db | F24: 226 | G24: 135 | H24: 91 | I24: 2
A25: 4. | B25: Urbánková Amálie | C25: Dačice | D25: 27209 | E25: db | F25: 222 | G25: 151 | H25: 71 | I25: 6
A26: 5. | B26: Jechová Lucie | C26: Kuželky Borovany | D26: 28288 | E26: db | F26: 221 | G26: 133 | H26: 88 | I26: 8
A27: 6. | B27: Soukupová Veronika | C27: KK Jihlava | D27: 28051 | E27: db | F27: 216 | G27: 154 | H27: 62 | I27: 10
A28: 7. | B28: Šalandová Eliška | C28: Jiskra Nová Bystřice | D28: 28295 | E28: db | F28: 214 | G28: 130 | H28: 84 | I28: 7
A29: 8. | B29: Kotlíková Zuzana | C29: Kuželky Borovany | D29: 28289 | E29: db | F29: 213 | G29: 139 | H29: 74 | I29: 5
A30: 9. | B30: Hanousková Kristýna | C30: KK Jihlava | D30: 28056 | E30: db | F30: 203 | G30: 121 | H30: 82 | I30: 11
A31: 10. | B31: Chládková Julie | C31: Jiskra Nová Bystřice | D31: 28152 | E31: db | F31: 200 | G31: 134 | H31: 66 | I31: 9
A32: 11. | B32: Vacková Marie | C32: Kuželky Borovany | D32: 28287 | E32: db | F32: 199 | G32: 126 | H32: 73 | I32: 8
A33: 12. | B33: Vondráková Johanka | C33: KK Jihlava | D33: 28319 | E33: db | F33: 186 | G33: 116 | H33: 70 | I33: 15
A34: 13. | B34: Nováčková Eva | C34: KK Jihlava | D34: 28053 | E34: db | F34: 175 | G34: 101 | H34: 74 | I34: 16
A36: 1. | B36: Vrbka Jan | C36: TJ Třebíč | D36: 26507 | E36: ha | F36: 295 | G36: 189 | H36: 106 | I36: 1
A37: 2. | B37: Zbořil Vojtěch | C37: KK Jihlava | D37: 26821 | E37: ha | F37: 266 | G37: 182 | H37: 84 | I37: 2
A38: 3. | B38: Melichar Lukáš | C38: Spartak Pelhřimov | D38: 25916 | E38: ha | F38: 257 | G38: 172 | H38: 85 | I38: 7
A39: 4. | B39: Schütz Petr | C39: TJ Třebíč | D39: 27022 | E39: ha | F39: 254 | G39: 167 | H39: 87 | I39: 3
A40: 5. | B40: Trnovský Daniel | C40: KK Jihlava | D40: 27301 | E40: ha | F40: 246 | G40: 168 | H40: 78 | I40: 2
A41: 6. | B41: Brand Richard | C41: České Velenice | D41: 26919 | E41: ha | F41: 241 | G41: 173 | H41: 68 | I41: 3
A42: 7. | B42: Rechtorik Matyáš | C42: Sokol Chotoviny | D42: 27244 | E42: ha | F42: 238 | G42: 157 | H42: 81 | I42: 7
A43: 8. | B43: Tarkovych Pavlo | C43: KK Jihlava | D43: 27305 | E43: ha | F43: 237 | G43: 180 | H43: 57 | I43: 10
A44: 9. | B44: Mašek Tomáš | C44: KK Jihlava | D44: 27304 | E44: ha | F44: 231 | G44: 164 | H44: 67 | I44: 6
A45: 10. | B45: Pešek Roman | C45: Spartak Trhové Sviny | D45: 26907 | E45: ha | F45: 231 | G45: 172 | H45: 59 | I45: 10
A46: 11. | B46: Štauber Marek | C46: Kuželky Borovany | D46: 27619 | E46: ha | F46: 230 | G46: 159 | H46: 71 | I46: 7
A47: 12. | B47: Gondek Matěj | C47: Vltavan Loučovice | D47: 26651 | E47: ha | F47: 226 | G47: 146 | H47: 80 | I47: 7
A48: 13. | B48: Balík Matyáš | C48: České Velenice | D48: 26922 | E48: ha | F48: 226 | G48: 156 | H48: 70 | I48: 5
A49: 14. | B49: Polkovnyk Roman | C49: KK Jihlava | D49: 27298 | E49: ha | F49: 223 | G49: 162 | H49: 61 | I49: 10
A50: 15. | B50: Janák Matouš | C50: Dačice | D50: 28322 | E50: ha | F50: 223 | G50: 166 | H50: 57 | I50: 9
A51: 16. | B51: Bednář František | C51: České Velenice | D51: 26921 | E51: ha | F51: 216 | G51: 152 | H51: 64 | I51: 5
A52: 17. | B52: Sirotek Dominik | C52: Sokol Chotoviny | D52: 27243 | E52: ha | F52: 210 | G52: 140 | H52: 70 | I52: 11
A53: 18. | B53: Šerpán Filip | C53: Sokol Chotoviny | D53: 27242 | E53: ha | F53: 204 | G53: 132 | H53: 72 | I53: 8
A54: 19. | B54: Spálenka Pavel | C54: Sokol Chotoviny | D54: 28337 | E54: ha | F54: 194 | G54: 152 | H54: 42 | I54: 14
A55: 20. | B55: Fidrant Josef | C55: TJ Sokol Kdyně | D55: 27731 | E55: ha | F55: 185 | G55: 123 | H55: 62 | I55: 9
A56: 21. | B56: Malovec Eduard | C56: KK Jihlava | D56: 28318 | E56: ha | F56: 184 | G56: 149 | H56: 35 | I56: 18
A57: 22. | B57: Čech Ondřej | C57: TJ Třebíč | D57: 28238 | E57: ha | F57: 176 | G57: 138 | H57: 38 | I57: 11
A59: 1. | B59: Novák Tomáš | C59: Dačice | D59: 27225 | E59: hb | F59: 305 | G59: 196 | H59: 109 | I59: 3
A60: 2. | B60: Žižka Matěj | C60: KK Jihlava | D60: 27310 | E60: hb | F60: 272 | G60: 176 | H60: 96 | I60: 2
A61: 3. | B61: Havel Jiří | C61: Jiskra Nová Bystřice | D61: 27947 | E61: hb | F61: 254 | G61: 164 | H61: 90 | I61: 4
A62: 4. | B62: Rozkošný Filip | C62: Spartak Pelhřimov | D62: 27672 | E62: hb | F62: 245 | G62: 148 | H62: 97 | I62: 5
A63: 5. | B63: Feytl Jiří | C63: Jiskra Nová Bystřice | D63: 28151 | E63: hb | F63: 243 | G63: 151 | H63: 92 | I63: 9
A64: 6. | B64: Ujčík Zbyněk | C64: TJ Třebíč | D64: 27759 | E64: hb | F64: 241 | G64: 152 | H64: 89 | I64: 5
A65: 7. | B65: Kolla Jindřich | C65: HKK Olomouc | D65: 27224 | E65: hb | F65: 239 | G65: 155 | H65: 84 | I65: 3
A66: 8. | B66: Turek Matyáš | C66: Spartak Pelhřimov | D66: 26828 | E66: hb | F66: 238 | G66: 154 | H66: 84 | I66: 5
A67: 9. | B67: Havel Tomáš | C67: Slavoj Žirovnice | D67: 27567 | E67: hb | F67: 236 | G67: 156 | H67: 80 | I67: 9
A68: 10. | B68: Smutný Filip | C68: KK Jihlava | D68: 28052 | E68: hb | F68: 228 | G68: 151 | H68: 77 | I68: 6
A69: 11. | B69: Vondráček Samuel | C69: Slovan Kamenice n.L. | D69: 27150 | E69: hb | F69: 223 | G69: 145 | H69: 78 | I69: 7
A70: 12. | B70: Černecký Matyáš | C70: KK Jihlava | D70: 28060 | E70: hb | F70: 221 | G70: 136 | H70: 85 | I70: 9
A71: 13. | B71: Kurz Štěpán | C71: Slovan Kamenice n.L. | D71: 27761 | E71: hb | F71: 213 | G71: 125 | H71: 88 | I71: 6
A72: 14. | B72: Fidrant Jakub | C72: TJ Sokol Kdyně | D72: 27732 | E72: hb | F72: 209 | G72: 137 | H72: 72 | I72: 11
A73: 15. | B73: Novák Šimon | C73: KK Jihlava | D73: 27612 | E73: hb | F73: 204 | G73: 130 | H73: 74 | I73: 8
A74: 16. | B74: Komínek Patrik | C74: KK Jihlava | D74: 28055 | E74: hb | F74: 199 | G74: 136 | H74: 63 | I74: 14
A75: 17. | B75: Vevera Petr | C75: KK Jihlava | D75: 28061 | E75: hb | F75: =IF(OR(ISBLANK($G75))," ",G75+H75) -> 197 | G75: 118 | H75: 79 | I75: 8
A76: 18. | B76: Zmeškal Miroslav | C76: Jiskra Nová Bystřice | D76: 28176 | E76: hb | F76: 197 | G76: 125 | H76: 72 | I76: 11
A77: 19. | B77: Malý Denis | C77: BOPO Třebíč | D77: 28320 | E77: hb | F77: 153 | G77: 90 | H77: 63 | I77: 17

Sheet Škoda Plzeň
A1: Škoda VS Plzeň
B5: Jméno | C5: Oddíl | D5: Reg.č. | E5: Kategorie | F5: Celk. | G5: Plné | H5: Dor. | I5: Chyb
A8: =IF(OR(ISBLANK($B8),$E8<0),"",ROW(A8)-7) -> 1. | B8: Hassová Růžena | C8: Fezko Strakonice | D8: 27018 | E8: da | F8: =SUM(G8:H8) -> 245 | G8: 181 | H8: 64 | I8: 10
A9: =IF(OR(ISBLANK($B9),$E9<0),"",ROW(A9)-7) -> 2. | B9: Rubášová Aneta | C9: TJ Sokol Kdyně | D9: 26735 | E9: da | F9: 243 | G9: 182 | H9: 61 | I9: 8
A10: =IF(OR(ISBLANK($B10),$E10<0),"",ROW(A10)-7) -> 3. | B10: Baťková Sofie | C10: TJ Blatná | D10: 27410 | E10: da | F10: 235 | G10: 164 | H10: 71 | I10: 6
A12: 1. | B12: Sušienková Hana | C12: Škoda Plzeň | D12: 27561 | E12: db | F12: 276 | G12: 180 | H12: 96 | I12: 4
A13: 2. | B13: Baťková Natálie | C13: TJ Blatná | D13: 27547 | E13: db | F13: 251 | G13: 159 | H13: 92 | I13: 6
A14: 3. | B14: Kocinová Nikola | C14: SKK Podbořany | D14: 28316 | E14: db | F14: 241 | G14: 169 | H14: 72 | I14: 7
A15: 4. | B15: Rottová Klára | C15: SKK Podbořany | D15: 28317 | E15: db | F15: 228 | G15: 147 | H15: 81 | I15: 6
A16: 5. | B16: Houšková Laura | C16: SKK Podbořany | D16: 28315 | E16: db | F16: 208 | G16: 166 | H16: 42 | I16: 7
A17: 6. | B17: Faitová Eva | C17: Kuželky Holýšov | D17: 28107 | E17: db | F17: 126 | G17: 69 | H17: 57 | I17: 23
A19: 1. | B19: Köriš Antonín | C19: TJ Blatná | D19: 27662 | E19: ha | F19: 289 | G19: 192 | H19: 97 | I19: 5
A20: 2. | B20: Kaas Alan | C20: TJ Slavoj Plzeň | D20: 26445 | E20: ha | F20: 260 | G20: 172 | H20: 88 | I20: 2
A21: 3. | B21: Leština Břetislav | C21: Kuželky Holýšov | D21: 27683 | E21: ha | F21: 248 | G21: 173 | H21: 75 | I21: 9
A22: 4. | B22: Chaloupecký Jakub | C22: SKK Podbořany | D22: 27322 | E22: ha | F22: 248 | G22: 180 | H22: 68 | I22: 8
A23: 5. | B23: Fous Lukáš | C23: Sokol Zahořany | D23: 27699 | E23: ha | F23: 237 | G23: 171 | H23: 66 | I23: 6
A24: 6. | B24: Steinbach Josef | C24: TJ Slavoj Plzeň | D24: 26869 | E24: ha | F24: 205 | G24: 162 | H24: 43 | I24: 13
A25: 7. | B25: Kulich Luboš | C25: Sokol Zahořany | D25: 27700 | E25: ha | F25: 201 | G25: 141 | H25: 60 | I25: 10
A26: 8. | B26: Cafourek Matyáš | C26: TJ Dobřany | D26: 28363 | E26: ha | F26: 175 | G26: 117 | H26: 58 | I26: 12
A27: 9. | B27: Vavříček Matěj | C27: Kuželky Holýšov | D27: 28111 | E27: ha | F27: 170 | G27: 121 | H27: 49 | I27: 13
A29: 1. | B29: Weck Ondřej | C29: SKK Rokycany | D29: 27543 | E29: hb | F29: 277 | G29: 181 | H29: 96 | I29: 5
A30: 2. | B30: Hajník Vojtěch | C30: TJ Blatná | D30: 27861 | E30: hb | F30: 266 | G30: 175 | H30: 91 | I30: 2
A31: 3. | B31: Baloun Lukáš | C31: TJ Dobřany | D31: 28362 | E31: hb | F31: 257 | G31: 183 | H31: 74 | I31: 8
A32: 4. | B32: Baloun Jiří | C32: CB Dobřany | D32: 27891 | E32: hb | F32: 238 | G32: 153 | H32: 85 | I32: 7
A33: 5. | B33: Špelina David | C33: SKK Rokycany | D33: 27895 | E33: hb | F33: 238 | G33: 159 | H33: 79 | I33: 5
A34: 6. | B34: Kupar Vít | C34: TJ Blatná | D34: 27548 | E34: hb | F34: 222 | G34: 141 | H34: 81 | I34: 6
A35: 7. | B35: Návara Vojtěch | C35: Kuželky Holýšov | D35: 27681 | E35: hb | F35: 191 | G35: 133 | H35: 58 | I35: 11
A36: 8. | B36: Vavříček Vít | C36: Kuželky Holýšov | D36: 28112 | E36: hb | F36: 187 | G36: 136 | H36: 51 | I36: 11
A37: 9. | B37: Fait Adam | C37: Kuželky Holýšov | D37: 27673 | E37: hb | F37: 181 | G37: 108 | H37: 73 | I37: 14

Sheet Šumperk
A1: Šumperk
B5: Jméno | C5: Oddíl | D5: Reg.č. | E5: Kategorie | F5: Celk. | G5: Plné | H5: Dor. | I5: Chyb
A8: =IF(OR(ISBLANK($B8),$E8<0),"",ROW(A8)-7) -> 1. | B8: Rybková Amálie | C8: TJ Valašské Meziříčí | D8: 26836 | E8: da | F8: =SUM(G8:H8) -> 252 | G8: 167 | H8: 85 | I8: 8
A9: 2. | B9: Kvapilová Eliška | C9: KK Zábřeh | D9: 27111 | E9: da | F9: 235 | G9: 160 | H9: 75 | I9: 5
A10: 3. | B10: Krejčí Anna | C10: Spartak Přerov | D10: 26691 | E10: da | F10: 235 | G10: 165 | H10: 70 | I10: 5
A11: 4. | B11: Bastová Petra | C11: Unie Hlubina | D11: 27865 | E11: da | F11: 227 | G11: 160 | H11: 67 | I11: 4
A12: 5. | B12: Řepecká Kateřina | C12: TJ Michálkovice | D12: 28263 | E12: da | F12: 214 | G12: 164 | H12: 50 | I12: 12
A13: 6. | B13: Chlevišťanová Linda | C13: TJ Odry | D13: 27170 | E13: da | F13: 213 | G13: 171 | H13: 42 | I13: 12
A14: 7. | B14: Dendisová Adéla | C14: Sokol Bohumín | D14: 27089 | E14: da | F14: 203 | G14: 161 | H14: 42 | I14: 11
A15: 8. | B15: Jelínková Kateřina | C15: TJ Horní Benešov | D15: 27924 | E15: da | F15: 199 | G15: 148 | H15: 51 | I15: 13
A16: 9. | B16: Buchlovská Šarlota | C16: Unie Hlubina | D16: 27866 | E16: da | F16: 192 | G16: 158 | H16: 34 | I16: 15
A17: 10. | B17: Dolečková Nela | C17: Loko Česká Třebová | D17: 27722 | E17: da | F17: 188 | G17: 141 | H17: 47 | I17: 16
A19: 1. | B19: Kolářová Sofie | C19: SK Rybník | D19: 27794 | E19: db | F19: 245 | G19: 159 | H19: 86 | I19: 6
A20: 2. | B20: Gálusová Tereza | C20: Start Rychnov n.K. | D20: 27902 | E20: db | F20: 236 | G20: 148 | H20: 88 | I20: 8
A21: 3. | B21: Fialová Vivien | C21: TJ Opava | D21: 28004 | E21: db | F21: 235 | G21: 144 | H21: 91 | I21: 6
A22: 4. | B22: Schejbalová Agáta | C22: SK Solnice | D22: 27911 | E22: db | F22: 232 | G22: 155 | H22: 77 | I22: 7
A23: 5. | B23: Žemličková Viktorie Ella | C23: Loko Česká Třebová | D23: 28002 | E23: db | F23: 229 | G23: 148 | H23: 81 | I23: 8
A24: 6. | B24: Broučková Elena | C24: SK Solnice | D24: 28193 | E24: db | F24: 227 | G24: 155 | H24: 72 | I24: 8
A25: 7. | B25: Žemličková Sofie Isabel | C25: Loko Česká Třebová | D25: 28001 | E25: db | F25: 222 | G25: 149 | H25: 73 | I25: 8
A26: 8. | B26: Dvorská Simona | C26: TJ Odry | D26: 27960 | E26: db | F26: 216 | G26: 133 | H26: 83 | I26: 8
A27: 9. | B27: Pailová Šárka | C27: KK Svitavy | D27: 27071 | E27: db | F27: 213 | G27: 142 | H27: 71 | I27: 7
A28: 10. | B28: Daňková Petra | C28: TJ Horní Benešov | E28: db | F28: 176 | G28: 105 | H28: 71 | I28: 9
A29: 11. | B29: Dendisová Viktorie | C29: Sokol Bohumín | D29: 27509 | E29: db | F29: 175 | G29: 112 | H29: 63 | I29: 19
A31: 1. | B31: Oprchal Jan | C31: SKK Jeseník | D31: 28187 | E31: ha | F31: 281 | G31: 185 | H31: 96 | I31: 8
A32: 2. | B32: Weinlich Marek | C32: KK Zábřeh | D32: 26764 | E32: ha | F32: 278 | G32: 183 | H32: 95 | I32: 5
A33: 3. | B33: Zelinka Vít | C33: KK Svitavy | D33: 27074 | E33: ha | F33: 265 | G33: 185 | H33: 80 | I33: 3
A34: 4. | B34: Piterka Sebastien | C34: Jiskra Rýmařov | D34: 26227 | E34: ha | F34: 257 | G34: 178 | H34: 79 | I34: 3
A35: 5. | B35: Indrák Vojtěch | C35: KK Zábřeh | D35: 26853 | E35: ha | F35: 257 | G35: 179 | H35: 78 | I35: 7
A36: 6. | B36: Honl Jakub | C36: Sokol Bohumín | D36: 26845 | E36: ha | F36: 251 | G36: 175 | H36: 76 | I36: 7
A37: 7. | B37: Vejmola Patrik | C37: KK Šumperk | D37: 26505 | E37: ha | F37: 247 | G37: 179 | H37: 68 | I37: 5
A38: 8. | B38: Meissel Karel | C38: Sokol Přemyslovice | D38: 27574 | E38: ha | F38: 245 | G38: 169 | H38: 76 | I38: 9
A39: 9. | B39: Dusbaba Přemysl | C39: SK Solnice | D39: 26945 | E39: ha | F39: 244 | G39: 176 | H39: 68 | I39: 6
A40: 10. | B40: Košina Martin | C40: Start Rychnov n.K. | D40: 26749 | E40: ha | F40: 237 | G40: 166 | H40: 71 | I40: 7
A41: 11. | B41: Kuchař Rostislav | C41: Horní Benešov | D41: 27923 | E41: ha | F41: 237 | G41: 168 | H41: 69 | I41: 6
A42: 12. | B42: Dastych Ondřej | C42: Vysoké Mýto | D42: 27112 | E42: ha | F42: 233 | G42: 185 | H42: 48 | I42: 8
A43: 13. | B43: Závrbský Jonáš | C43: Spartak Přerov | D43: 27982 | E43: ha | F43: 231 | G43: 163 | H43: 68 | I43: 6
A44: 14. | B44: König Petr | C44: KK Zábřeh | D44: 27339 | E44: ha | F44: 228 | G44: 164 | H44: 64 | I44: 11
A45: 15. | B45: Matěj Ondřej | C45: KK Zábřeh | D45: 27967 | E45: ha | F45: 225 | G45: 163 | H45: 62 | I45: 8
A46: 16. | B46: Švéda Alex | C46: KK Zábřeh | D46: 27400 | E46: ha | F46: 221 | G46: 161 | H46: 60 | I46: 14
A47: 17. | B47: Myšák Kristián | C47: Jiskra Hylváty | D47: 28101 | E47: ha | F47: 216 | G47: 156 | H47: 60 | I47: 9
A48: 18. | B48: Valentovič Roman | C48: Spartak Přerov | D48: 27867 | E48: ha | F48: 213 | G48: 165 | H48: 48 | I48: 12
A49: 19. | B49: Tichý Ladislav | C49: KK Šumperk | D49: 27951 | E49: ha | F49: 208 | G49: 157 | H49: 51 | I49: 13
A50: 20. | B50: Pečinka Tobiáš | C50: TJ Horní Benešov | D50: 27922 | E50: ha | F50: 208 | G50: 166 | H50: 42 | I50: 13
A51: 21. | B51: Kříž Matyáš | C51: SK Rybník | D51: 26903 | E51: ha | F51: 202 | G51: 151 | H51: 51 | I51: 11
A53: 1. | B53: Weiss Patrik | C53: Start Rychnov n.K. | D53: 27508 | E53: hb | F53: 268 | G53: 181 | H53: 87 | I53: 5
A54: 2. | B54: Bršťák Martin | C54: Jiskra Rýmařov | D54: 28098 | E54: hb | F54: 263 | G54: 157 | H54: 106 | I54: 7
A55: 3. | B55: Maiwald Antonín | C55: TJ Opava | D55: 27294 | E55: hb | F55: 257 | G55: 158 | H55: 99 | I55: 7
A56: 4. | B56: Čuba Alex | C56: TJ Horní Benešov | D56: 27677 | E56: hb | F56: 256 | G56: 164 | H56: 92 | I56: 4
A57: 5. | B57: Drábek Sebastien | C57: Loko Česká Třebová | D57: 27999 | E57: hb | F57: 246 | G57: 153 | H57: 93 | I57: 6
A58: 6. | B58: Malina Tomáš | C58: TJ Odry | D58: 27169 | E58: hb | F58: 243 | G58: 159 | H58: 84 | I58: 5
A59: 7. | B59: Dusík Jaroslav | C59: TJ Horní Benešov | D59: 27925 | E59: hb | F59: 238 | G59: 149 | H59: 89 | I59: 6
A60: 8. | B60: Srp Sebastian | C60: SK Solnice | D60: 27881 | E60: hb | F60: 236 | G60: 157 | H60: 79 | I60: 12
A61: 9. | B61: Petráš Jakub | C61: KK Zábřeh | D61: 28346 | E61: hb | F61: 233 | G61: 136 | H61: 97 | I61: 9
A62: 10. | B62: Němčanský Ondřej | C62: TJ Opava | D62: 27562 | E62: hb | F62: 227 | G62: 155 | H62: 72 | I62: 9
A63: 11. | B63: Piterka Štěpán | C63: Jiskra Rýmařov | D63: 27206 | E63: hb | F63: 226 | G63: 147 | H63: 79 | I63: 8
A64: 12. | B64: Sitař Filip | C64: KK Šumperk | D64: 27955 | E64: hb | F64: 225 | G64: 144 | H64: 81 | I64: 9
A65: 13. | B65: Janák David | C65: KK Zábřeh | D65: 28347 | E65: hb | F65: 221 | G65: 137 | H65: 84 | I65: 7
A66: 14. | B66: Chromečka Michal | C66: TJ Odry | D66: 28240 | E66: hb | F66: 216 | G66: 130 | H66: 86 | I66: 10
A67: 15. | B67: Těžký Václav | C67: TJ Horní Benešov | D67: 27939 | E67: hb | F67: 213 | G67: 134 | H67: 79 | I67: 5
A68: 16. | B68: Flídr Štěpán | C68: Loko Česká Třebová | D68: 27998 | E68: hb | F68: 212 | G68: 137 | H68: 75 | I68: 9
A69: 17. | B69: Morávek Jan | C69: Jiskra Hylváty | D69: 27888 | E69: hb | F69: 209 | G69: 135 | H69: 74 | I69: 3
A70: 18. | B70: Pátek Tobiáš | C70: SK Solnice | D70: 28242 | E70: hb | F70: 203 | G70: 124 | H70: 79 | I70: 9
A71: 19. | B71: Steur Maxim | C71: TJ Opava | D71: 27537 | E71: hb | F71: 195 | G71: 124 | H71: 71 | I71: 5
A72: 20. | B72: Šnajdr Tomáš | C72: TJ Odry | D72: 28239 | E72: hb | F72: 185 | G72: 113 | H72: 72 | I72: 14
A73: 21. | B73: Ožana Kajetán | C73: Unie Hlubina | D73: 28281 | E73: hb | F73: 172 | G73: 99 | H73: 73 | I73: 11
A74: 22. | B74: Řepecký Jiří | C74: TJ Michálkovice | D74: 28261 | E74: hb | F74: 170 | G74: 103 | H74: 67 | I74: 17
A75: 23. | B75: Harazim Štěpán | C75: TJ Opava | D75: 27295 | E75: hb | F75: =SUM(G75:H75) -> 159 | G75: 103 | H75: 56 | I75: 5
A76: 24. | B76: Řepecký Ondřej | C76: TJ Michálkovice | D76: 28262 | E76: hb | F76: 158 | G76: 91 | H76: 67 | I76: 16
